bitfinex-derivatives/quotes_SOLF0:USTF0_20250127
["timestamp","ask_amount","ask_price","bid_price","bid_amount"]
[1737938473194,1.3896,239.27,239.16,26.36664545]
[1737938473591,0.03074683,239.22,239.17,0.02952452]
[1737938474095,0.03173916,239.22,239.17,0.03078566]
[1737938474391,4.1834,239.13,239.04,26.36664545]
[1737938474593,0.03173916,239.22,239.04,26.36664545]
[1737938474793,26.36664545,239.24,239.04,26.36664545]
[1737938474993,0.76865865,239.23,239.04,26.36664545]
[1737938475692,0.02744349,239.16,239.11,0.0290727]
[1737938475898,4.21034349,239.16,239.11,0.0290727]
[1737938476287,0.02744349,239.16,239.11,0.0290727]
[1737938476998,4.1833,239.13,239.11,0.0290727]
[1737938477691,0.02744349,239.16,239.12,26.36664545]
[1737938478287,0.02744349,239.16,239.11,0.0290727]
[1737938478697,4.1834,239.13,239.11,0.0290727]
[1737938479292,0.02744349,239.16,239.11,0.0290727]
[1737938479599,0.76856843,239.31,239.12,26.36664545]
[1737938480098,26.36664545,239.28,239.04,26.36664545]
[1737938480294,26.36664545,239.24,239.04,26.36664545]
[1737938480494,0.76856843,239.23,239.04,26.36664545]
[1737938480697,0.0267074,239.16,239.12,0.0282502]
[1737938480888,0.0267074,239.16,239.12,5.02e-05]
[1737938481093,4.1851,239.03,238.97,1.3414]
[1737938481290,0.0267074,239.16,238.97,1.3414]
[1737938481498,0.76888277,239.18,238.97,1.3414]
[1737938481697,0.76888277,239.18,239.0,26.36664545]
[1737938482195,4.21184201,239.11,239.07,0.03209097]
[1737938482599,0.02814201,239.11,239.07,0.03209097]
[1737938483297,4.184,239.09,239.07,0.03209097]
[1737938484195,0.02814201,239.11,238.92,26.36664545]
[1737938484401,0.79719232,239.11,238.92,26.36664545]
[1737938484701,4.1846,239.06,238.92,26.36664545]
[1737938485000,26.36664545,239.16,238.92,26.36664545]
[1737938485191,0.76907406,239.15,238.92,26.36664545]
[1737938485392,0.0305154,239.06,239.02,0.02942048]
[1737938485793,0.76907406,239.15,239.02,0.02942048]
[1737938485996,0.02954497,239.06,239.02,0.02942048]
[1737938486198,1.328,239.14,239.02,0.02942048]
[1737938486395,0.02928296,239.06,239.02,0.02942048]
[1737938486601,2.6153,239.19,239.02,0.02942048]
[1737938486803,4.1831,239.14,239.06,4.1844]
[1737938487203,4.1835,239.12,239.05,26.36664545]
[1737938487607,2.6153,239.19,239.05,26.36664545]
[1737938487802,4.1835,239.12,239.05,30.55114545]
[1737938488002,0.02964445,239.11,239.06,0.02849587]
[1737938488898,4.1838,239.1,239.06,0.02849587]
[1737938489301,0.02964445,239.11,239.06,0.02849587]
[1737938489497,4.21334445,239.11,239.06,0.02849587]
[1737938490398,0.02964445,239.11,239.06,0.02849587]
[1737938490803,31.9930737,239.36,239.09,26.36664545]
[1737938491003,2.6598,239.35,239.14,26.36664545]
[1737938491204,2.6598,239.35,239.18,26.36664545]
[1737938491408,4.1803,239.3,239.2,4.1819]
[1737938491608,2.6598,239.35,239.18,26.36664545]
[1737938491906,2.6598,239.35,239.19,1.4275]
[1737938492207,0.02766245,239.29,239.24,0.03162383]
[1737938492701,5.62642825,239.38,239.26,26.36664545]
[1737938493102,5.62642825,239.38,239.27,4.1807]
[1737938493301,5.62642825,239.38,239.26,26.36664545]
[1737938493611,1.3649,239.42,239.26,26.36664545]
[1737938494003,0.0302541,239.36,239.32,0.03059666]
[1737938495306,4.1797,239.33,239.32,0.03059666]
[1737938495502,0.0302541,239.36,239.32,0.03059666]
[1737938496016,1.3256,239.47,239.32,0.03059666]
[1737938496312,1.3256,239.47,239.31,26.36664545]
[1737938497315,0.02936203,239.41,239.37,0.03113125]
[1737938498220,4.179,239.38,239.37,0.03113125]
[1737938499016,4.1786,239.4,239.37,0.03113125]
[1737938499717,0.02936203,239.41,239.37,0.03113125]
[1737938501515,1.3007,239.56,239.43,26.36664545]
[1737938501716,4.1777,239.45,239.39,26.36664545]
[1737938501910,1.3007,239.56,239.38,1.4056]
[1737938502112,26.36664545,239.52,239.31,26.36664545]
[1737938502309,26.36664545,239.48,239.27,26.36664545]
[1737938502607,0.02677734,239.44,239.39,0.02814679]
[1737938503016,4.1785,239.4,239.39,0.02814679]
[1737938503815,0.02677734,239.44,239.27,26.36664545]
[1737938504015,0.02677734,239.44,239.27,30.54744545]
[1737938504216,26.36664545,239.48,239.27,26.36664545]
[1737938504516,26.36664545,239.52,239.27,26.36664545]
[1737938504713,0.76798656,239.51,239.27,26.36664545]
[1737938504910,26.36664545,239.46,239.23,27.77224545]
[1737938505117,26.36664545,239.38,239.19,1.4275]
[1737938505419,2.7151,239.37,239.05,2.7223]
[1737938505609,2.7151,239.37,239.05,4.1061]
[1737938506218,2.7151,239.37,239.05,16.6561]
[1737938506420,0.03100695,239.32,239.27,0.02730673]
[1737938506717,1.3918,239.45,239.26,26.36664545]
[1737938507014,0.03071984,239.32,239.27,0.02653921]
[1737938507210,4.1796,239.34,239.26,26.36664545]
[1737938507410,4.1796,239.34,239.25,4.181]
[1737938507411,0.02905392,239.32,239.27,0.03093533]
[1737938507921,0.03018313,239.32,239.27,0.02667624]
[1737938508618,1.3918,239.45,239.29,4.1804]
[1737938508815,1.3918,239.45,239.26,26.36664545]
[1737938509724,0.02648355,239.38,239.33,3.2e-05]
[1737938509913,26.36664545,239.37,239.33,3.2e-05]
[1737938510420,4.1796,239.34,239.33,3.2e-05]
[1737938511914,4.94808434,239.34,239.33,3.2e-05]
[1737938512119,4.1796,239.34,239.33,3.2e-05]
[1737938513117,4.184,239.09,239.05,27.65364545]
[1737938513316,8.3598,239.33,239.05,27.65364545]
[1737938513317,26.36664545,239.25,239.05,27.65364545]
[1737938513628,26.36664545,239.21,239.01,26.36664545]
[1737938513925,26.36664545,239.12,238.89,26.36664545]
[1737938514122,1.3291,239.11,238.89,26.36664545]
[1737938514323,0.02651374,239.03,238.98,0.03184821]
[1737938515529,4.1856,239.0,238.98,0.03184821]
[1737938516021,4.1872,238.91,238.86,1.4112]
[1737938516518,26.36664545,239.0,238.8,104.58664545]
[1737938516721,26.36664545,239.0,238.77,1.3826]
[1737938517120,26.36664545,239.0,238.86,0.02998547]
[1737938517326,0.03184295,238.91,238.86,0.02998547]
[1737938517925,4.1878,238.87,238.86,0.02998547]
[1737938518322,0.03184295,238.91,238.86,0.02998547]
[1737938519217,4.1877,238.88,238.86,0.02998547]
[1737938521029,0.03184295,238.91,238.86,0.02998547]
[1737938522629,2.8013,239.07,238.88,26.36664545]
[1737938523731,0.02844172,239.0,238.95,0.02739655]
[1737938524739,0.02844172,239.0,238.96,30.55284545]
[1737938525529,0.02844172,239.0,238.96,26.36664545]
[1737938526328,4.1861,238.97,238.95,0.02739655]
[1737938526835,4.1858,238.99,238.95,0.02739655]
[1737938527035,0.02844172,239.0,238.95,0.02739655]
[1737938527831,4.1861,238.97,238.95,0.02739655]
[1737938528433,0.02844172,239.0,238.95,0.02739655]
[1737938528635,0.02844172,239.0,238.97,26.36664545]
[1737938529138,0.02844172,239.0,238.95,0.02739655]
[1737938529728,4.1858,238.99,238.95,0.02739655]
[1737938529935,0.02844172,239.0,238.95,0.02739655]
[1737938531332,0.02844172,239.0,238.85,1.4113]
[1737938531528,0.02844172,239.0,238.85,27.77794545]
[1737938531735,1.3911,239.03,238.86,4.1879]
[1737938531932,1.3911,239.03,238.89,26.36664545]
[1737938532337,26.36664545,239.08,238.89,26.36664545]
[1737938532338,1.3291,239.11,238.89,26.36664545]
[1737938532538,0.03031215,238.98,238.94,0.02918221]
[1737938532737,1.3911,239.1,238.97,26.36664545]
[1737938532940,1.4271,239.16,239.01,26.36664545]
[1737938533337,2.7381,239.19,239.05,26.36664545]
[1737938533539,1.3581,239.26,239.09,26.36664545]
[1737938533940,0.02806357,239.2,239.04,26.36664545]
[1737938534445,4.184,239.09,239.01,4.1852]
[1737938534942,4.184,239.09,239.0,26.36664545]
[1737938535143,0.03004131,239.07,239.03,0.03070362]
[1737938535540,1.4204,239.2,239.0,26.36664545]
[1737938535740,0.02890958,239.07,239.03,0.03016823]
[1737938535938,4.1842,239.08,239.03,0.03016823]
[1737938536143,4.1842,239.08,239.0,26.36664545]
[1737938536342,0.02653987,239.07,239.03,0.0314529]
[1737938536543,0.02653987,239.07,239.04,26.36664545]
[1737938536743,1.347,239.19,239.04,26.36664545]
[1737938536942,0.02699042,239.08,239.04,26.36664545]
[1737938537143,1.3581,239.26,239.04,52.7332909]
[1737938537338,1.3581,239.26,239.11,26.36664545]
[1737938538042,29.05354545,239.33,239.11,26.36664545]
[1737938538246,0.03005439,239.21,239.16,0.03028228]
[1737938538650,2.6869,239.33,239.15,26.36664545]
[1737938538943,2.6869,239.33,239.19,26.36664545]
[1737938539150,4.1802,239.31,239.22,4.1816]
[1737938539346,1.372,239.41,239.23,26.36664545]
[1737938539647,4.1792,239.36,239.27,26.36664545]
[1737938539851,2.65,239.44,239.27,26.36664545]
[1737938540150,0.0267749,239.34,239.29,0.03219094]
[1737938540450,26.36664545,239.48,239.29,0.03219094]
[1737938540658,27.70654545,239.48,239.27,26.36664545]
[1737938540847,26.36664545,239.44,239.24,1.3001]
[1737938541755,0.02952345,239.36,239.32,0.02662583]
[1737938542358,4.1797,239.33,239.32,0.02662583]
[1737938542554,0.02952345,239.36,239.19,26.36664545]
[1737938542857,4.1793,239.36,239.19,26.36664545]
[1737938543059,26.36664545,239.44,239.19,26.36664545]
[1737938543260,0.76818706,239.43,239.23,26.36664545]
[1737938543559,4.1803,239.3,239.23,26.36664545]
[1737938543757,1.3399,239.48,239.19,26.36664545]
[1737938543758,0.02981304,239.35,239.31,0.03069641]
[1737938544056,4.1791,239.37,239.28,4.1805]
[1737938544356,0.0278668,239.35,239.31,0.03052009]
[1737938544657,0.76803485,239.47,239.27,26.36664545]
[1737938544861,26.36664545,239.44,239.19,26.36664545]
[1737938545059,0.02945582,239.35,239.31,0.02737895]
[1737938545362,26.36664545,239.36,239.15,26.36664545]
[1737938545563,2.7276,239.35,239.15,26.36664545]
[1737938545761,4.1819,239.21,239.15,26.36664545]
[1737938545955,2.7276,239.35,239.15,26.36664545]
[1737938546355,26.36664545,239.44,239.23,26.36664545]
[1737938546557,0.0297774,239.28,239.23,26.39847159]
[1737938546854,4.1787,239.39,239.24,1.392]
[1737938547060,2.7276,239.46,239.24,1.392]
[1737938547258,0.76807824,239.45,239.24,2.7214]
[1737938547458,4.1787,239.39,239.24,2.7214]
[1737938547656,1.3641,239.46,239.24,2.7214]
[1737938547852,1.3635,239.47,239.31,26.36664545]
[1737938548053,4.178,239.44,239.35,26.36664545]
[1737938548254,0.0317416,239.41,239.37,0.02783939]
[1737938549053,4.1788,239.39,239.37,0.02783939]
[1737938549667,0.0317416,239.41,239.37,0.02783939]
[1737938549962,4.1787,239.39,239.37,0.02783939]
[1737938551553,4.1804,239.3,239.25,1.2879]
[1737938551755,0.0317416,239.41,239.25,1.2879]
[1737938551960,26.36664545,239.43,239.24,2.7214]
[1737938552158,26.36664545,239.39,239.17,1.2958]
[1737938552366,26.36664545,239.35,239.12,26.36664545]
[1737938552565,0.76844293,239.34,239.12,26.36664545]
[1737938552765,4.1813,239.24,239.23,0.03093696]
[1737938553360,0.03032635,239.27,239.08,26.36664545]
[1737938553567,26.3969718,239.27,239.08,26.36664545]
[1737938553763,26.36664545,239.27,239.08,26.36664545]
[1737938553965,1.3987,239.26,239.07,1.3519]
[1737938554866,0.02832585,239.19,239.14,0.02673849]
[1737938556166,4.1827,239.16,239.14,0.02673849]
[1737938557771,4.21052585,239.19,239.14,0.02673849]
[1737938557965,0.02832585,239.19,239.14,0.02673849]
[1737938558468,26.36664545,239.35,239.14,0.02673849]
[1737938558665,1.3284,239.34,239.16,26.36664545]
[1737938559771,0.03184892,239.27,239.23,0.02989063]
[1737938561170,4.1812,239.25,239.23,0.02989063]
[1737938562671,0.03184892,239.27,239.08,26.36664545]
[1737938562864,4.1835,239.12,239.06,2.708]
[1737938563172,26.36664545,239.23,239.06,1.2958]
[1737938563373,4.1842,239.08,239.04,26.36664545]
[1737938563870,0.03134662,239.08,239.04,26.39797018]
[1737938564072,4.1843,239.07,239.04,0.03132473]
[1737938564672,0.03134662,239.08,239.04,0.03132473]
[1737938565272,4.21544662,239.08,239.04,0.03132473]
[1737938565575,0.03134662,239.08,239.04,0.03132473]
[1737938565970,4.1845,239.06,239.04,0.03132473]
[1737938566475,0.03134662,239.08,238.92,26.36664545]
[1737938566674,4.1863,238.96,238.88,26.36664545]
[1737938566881,29.14204545,239.07,238.88,26.36664545]
[1737938567173,2.7754,239.07,238.88,26.36664545]
[1737938567575,4.1859,238.99,238.95,0.03092966]
[1737938567879,0.02857914,239.0,238.95,0.03092966]
[1737938568977,4.1861,238.97,238.95,0.03092966]
[1737938569171,0.02857914,239.0,238.95,0.03092966]
[1737938569570,4.21417914,239.0,238.95,0.03092966]
[1737938569768,26.36664545,239.19,238.96,26.36664545]
[1737938569975,0.76900043,239.18,239.01,26.36664545]
[1737938570373,26.36664545,239.19,239.01,26.36664545]
[1737938571069,0.02870745,239.12,239.08,0.0289208]
[1737938572279,4.21220745,239.12,239.08,0.0289208]
[1737938572476,0.02870745,239.12,239.08,0.0289208]
[1737938572875,4.1838,239.1,239.08,0.0289208]
[1737938573476,0.02870745,239.12,239.08,0.0289208]
[1737938574081,4.1838,239.1,239.08,0.0289208]
[1737938575482,4.21220745,239.12,239.08,0.0289208]
[1737938575784,4.1163,239.3,239.1,26.36664545]
[1737938575978,4.1163,239.3,239.08,0.0289208]
[1737938575979,4.1163,239.3,239.14,26.36664545]
[1737938576374,8.357,239.41,239.11,1.4226]
[1737938576375,4.1797,239.34,239.18,26.36664545]
[1737938576578,30.59284545,239.4,239.18,26.36664545]
[1737938576972,4.1803,239.3,239.27,0.03183255]
[1737938577175,0.02648468,239.31,239.27,0.03183255]
[1737938577376,4.2262,239.4,239.27,0.03183255]
[1737938577576,22.56072597,239.46,239.27,0.03183255]
[1737938577779,0.76807424,239.45,239.26,26.36664545]
[1737938577979,22.56072597,239.46,239.26,26.36664545]
[1737938578282,1.4176,239.47,239.26,26.36664545]
[1737938578777,1.4176,239.47,239.34,0.02780901]
[1737938579077,0.02922079,239.39,239.34,0.02780901]
[1737938580084,4.1794,239.36,239.34,0.02780901]
[1737938580480,0.02922079,239.39,239.34,0.02780901]
[1737938581490,4.1793,239.36,239.34,0.02780901]
[1737938582078,4.1809,239.27,239.22,26.36664545]
[1737938582284,0.02922079,239.39,239.19,1.3008]
[1737938582486,26.36664545,239.4,239.19,1.3008]
[1737938583385,4.1809,239.27,239.19,1.3008]
[1737938583782,4.181,239.26,239.21,0.03104228]
[1737938583991,0.03195159,239.25,239.21,0.03104228]
[1737938584287,26.36664545,239.36,239.21,0.02978368]
[1737938584489,0.02644432,239.25,239.06,26.36664545]
[1737938584683,26.36664545,239.24,239.02,26.36664545]
[1737938584883,4.1816,239.23,239.15,26.36664545]
[1737938585083,4.1552,239.35,239.15,26.36664545]
[1737938585684,0.03142417,239.27,239.23,0.03056214]
[1737938586587,4.181,239.26,239.23,0.03056214]
[1737938586787,0.03142417,239.27,239.23,0.03056214]
[1737938587982,4.1813,239.24,239.23,0.03056214]
[1737938588387,26.36664545,239.48,239.23,26.39720759]
[1737938588691,1.4026,239.47,239.32,16.08166831]
[1737938588888,4.1785,239.41,239.32,16.08166831]
[1737938589091,1.4026,239.47,239.32,16.08166831]
[1737938589486,4.1784,239.41,239.37,0.02961497]
[1737938589692,0.02784758,239.42,239.37,0.02961497]
[1737938590192,4.1788,239.39,239.37,0.02961497]
[1737938590394,0.02784758,239.42,239.28,16.08166831]
[1737938590591,4.1794,239.35,239.27,26.14410237]
[1737938590795,1.4026,239.47,239.31,26.14410237]
[1737938591087,1.4026,239.47,239.35,26.14410237]
[1737938591697,0.02910786,239.43,239.39,0.03159821]
[1737938591894,4.1785,239.4,239.39,0.03159821]
[1737938593196,4.1803,239.31,239.27,26.14410237]
[1737938593391,0.02910786,239.43,239.25,78.22]
[1737938593596,26.14410237,239.45,239.25,78.22]
[1737938593896,0.76818093,239.44,239.25,78.22]
[1737938594291,26.14410237,239.42,239.25,78.22]
[1737938594497,0.02900379,239.37,239.32,0.02953703]
[1737938594698,0.02900379,239.37,239.19,26.14410237]
[1737938594890,26.14410237,239.42,239.19,26.14410237]
[1737938595098,0.76825666,239.41,239.19,26.14410237]
[1737938595491,26.14410237,239.38,239.15,26.14410237]
[1737938595699,2.07865666,239.37,239.15,26.14410237]
[1737938595900,4.1811,239.25,239.24,0.03184538]
[1737938596198,0.02880786,239.29,239.07,26.14410237]
[1737938596491,4.1827,239.17,239.11,26.14410237]
[1737938596695,1.3104,239.24,239.06,78.22]
[1737938596896,1.3104,239.24,239.08,26.14410237]
[1737938597291,0.02743033,239.18,239.14,0.02819966]
[1737938597688,4.1828,239.16,239.14,0.02819966]
[1737938597898,0.02743033,239.18,239.04,26.14410237]
[1737938598397,1.3104,239.24,239.04,26.14410237]
[1737938599097,0.03099101,239.16,239.12,0.02743745]
[1737938599292,0.03099101,239.16,239.0,26.14410237]
[1737938599595,26.14410237,239.13,238.95,26.14410237]
[1737938600095,4.1847,239.05,238.99,26.14410237]
[1737938600490,0.02988826,239.04,239.0,0.02656682]
[1737938600898,0.76894138,239.2,238.99,26.14410237]
[1737938601095,0.02766099,239.04,239.0,0.03148695]
[1737938601402,26.14410237,239.17,238.95,26.14410237]
[1737938601600,1.2978,239.21,239.0,0.03071131]
[1737938601601,0.02783738,239.04,239.0,0.03071131]
[1737938601897,1.2978,239.21,239.0,26.17481368]
[1737938602102,4.1833,239.13,239.08,26.14410237]
[1737938602298,1.2978,239.21,239.08,26.14410237]
[1737938602494,1.3104,239.24,239.12,26.14410237]
[1737938602699,1.3104,239.24,239.16,26.14410237]
[1737938602898,1.3104,239.24,239.16,26.17244299]
[1737938603104,0.03067441,239.2,239.16,26.17244299]
[1737938603800,4.1804,239.3,239.16,30.35514299]
[1737938603997,1.3035,239.35,239.2,26.14410237]
[1737938604597,2.6755,239.35,239.2,26.14410237]
[1737938605000,0.0313126,239.3,239.25,0.03088296]
[1737938605705,4.181,239.26,239.25,0.03088296]
[1737938606205,4.181,239.26,239.15,26.14410237]
[1737938606206,4.1811,239.26,239.15,26.14410237]
[1737938606504,26.14410237,239.34,239.15,26.14410237]
[1737938607399,0.02879128,239.27,239.22,0.02827625]
[1737938608004,0.02879128,239.27,239.11,26.14410237]
[1737938608211,26.14410237,239.3,239.11,26.14410237]
[1737938608504,4.1831,239.14,239.11,26.14410237]
[1737938608898,26.14410237,239.34,239.11,26.14410237]
[1737938609104,0.02818579,239.23,239.18,0.02713573]
[1737938609304,2.6755,239.35,239.15,26.14410237]
[1737938609601,0.02790155,239.23,239.18,0.03172805]
[1737938609805,2.6755,239.35,239.15,26.14410237]
[1737938610005,0.02775308,239.23,239.18,0.02680549]
[1737938610307,1.3035,239.35,239.19,26.14410237]
[1737938610509,1.3035,239.35,239.27,26.14410237]
[1737938611003,4.1805,239.29,239.27,26.14410237]
[1737938611207,1.3035,239.35,239.23,26.14410237]
[1737938611406,1.3035,239.35,239.17,0.1473]
[1737938611407,0.02677487,239.3,239.26,5.981e-05]
[1737938611601,4.1808,239.27,239.26,5.981e-05]
[1737938611806,1.3035,239.35,239.15,26.14410237]
[1737938612709,0.03043968,239.27,239.23,0.02906292]
[1737938612909,0.03043968,239.27,239.15,26.14410237]
[1737938612910,0.03043968,239.27,239.11,26.14410237]
[1737938613212,26.14410237,239.26,239.07,26.14410237]
[1737938613400,26.14410237,239.22,239.03,26.14410237]
[1737938613607,2.781,239.21,239.03,26.14410237]
[1737938614209,0.02888043,239.14,239.1,0.03213382]
[1737938615611,4.1833,239.13,239.1,0.03213382]
[1737938615908,0.02888043,239.14,239.1,0.03213382]
[1737938616109,4.1835,239.12,239.1,0.03213382]
[1737938619508,0.02888043,239.14,238.96,1.4014]
[1737938619710,26.14410237,239.18,238.96,1.4014]
[1737938620013,4.1854,239.01,238.96,27.54550237]
[1737938620211,26.14410237,239.18,238.96,27.54550237]
[1737938620712,0.02657345,239.09,239.05,0.03090898]
[1737938620908,26.14410237,239.18,239.05,0.03090898]
[1737938621112,0.02961746,239.09,239.05,0.03090898]
[1737938621413,26.14410237,239.14,238.92,26.14410237]
[1737938622314,30.44410237,239.18,238.93,26.14410237]
[1737938622614,0.02937642,239.08,239.03,0.02768205]
[1737938622912,8.3655,239.16,238.93,26.14410237]
[1737938623114,0.02778415,239.08,239.03,0.02896023]
[1737938624213,4.185,239.04,239.03,0.02896023]
[1737938624909,0.02778415,239.08,239.03,0.02896023]
[1737938625514,4.1843,239.07,239.03,0.02896023]
[1737938625707,0.02778415,239.08,239.03,0.02896023]
[1737938626113,4.1848,239.04,239.03,0.02896023]
[1737938627208,4.1869,238.93,238.9,16.13412299]
[1737938627409,2.71,239.07,238.9,16.13412299]
[1737938627608,4.1849,239.04,238.98,16.13412299]
[1737938628315,0.02947859,239.03,238.98,16.13412299]
[1737938628716,2.731,239.16,238.98,16.13412299]
[1737938628913,0.02843379,239.03,238.98,16.13412299]
[1737938629118,2.731,239.16,238.94,16.13412299]
[1737938629319,0.02816547,239.03,238.98,16.13412299]
[1737938629818,0.03150969,239.03,238.98,16.13412299]
[1737938630219,2.731,239.16,238.94,16.13412299]
[1737938630220,4.1846,239.06,239.02,16.13412299]
[1737938630612,2.731,239.16,239.02,16.13412299]
[1737938631317,4.1846,239.06,239.02,16.13412299]
[1737938631512,0.03067455,239.11,238.98,16.13412299]
[1737938631710,2.731,239.16,238.94,16.13412299]
[1737938631911,0.02861543,239.07,239.0,0.03101597]
[1737938632112,0.02861543,239.07,238.94,16.13412299]
[1737938632323,0.02861543,239.07,239.01,0.02893704]
[1737938632616,0.02861543,239.07,238.9,16.13412299]
[1737938632924,16.13412299,239.04,238.82,0.178]
[1737938633120,2.7195,239.03,238.82,0.178]
[1737938633315,2.7195,239.03,238.89,16.13412299]
[1737938633819,4.1857,238.99,238.93,16.13412299]
[1737938634021,0.0264796,238.98,238.93,16.13412299]
[1737938634521,4.1864,238.95,238.91,26.22614263]
[1737938635022,4.21344064,238.95,238.91,26.22614263]
[1737938636415,4.1866,238.94,238.91,26.22614263]
[1737938636620,0.02704064,238.95,238.87,26.22614263]
[1737938636922,4.1873,238.9,238.87,26.22614263]
[1737938637221,0.02704064,238.95,238.87,26.22614263]
[1737938637422,0.02704064,238.95,238.91,26.22614263]
[1737938637624,4.24,239.1,238.91,26.22614263]
[1737938637823,1.3749,239.09,238.92,1.3852]
[1737938638215,1.3749,239.09,238.95,26.22614263]
[1737938638920,0.0307564,239.04,239.0,0.03111914]
[1737938639121,4.1853,239.02,239.0,0.03111914]
[1737938639723,4.1853,239.01,239.0,0.03111914]
[1737938639920,22.56072597,239.2,239.0,0.03111914]
[1737938640120,1.4225,239.19,239.09,26.22614263]
[1737938640322,4.1829,239.16,239.13,26.22614263]
[1737938640621,22.56072597,239.2,239.09,26.22614263]
[1737938640820,4.1837,239.11,239.09,26.22614263]
[1737938641223,1.4225,239.26,239.09,26.22614263]
[1737938641527,71.34759457,239.35,239.05,1.2922]
[1737938641528,45.12145194,239.35,239.15,26.22614263]
[1737938641727,1.4225,239.32,239.15,26.22614263]
[1737938641921,4.1823,239.19,239.15,26.22614263]
[1737938642127,26.22614263,239.31,239.05,1.2922]
[1737938642327,1.4225,239.32,239.05,1.2922]
[1737938642328,26.22614263,239.23,239.05,1.2922]
[1737938642523,0.02750701,239.2,239.0,26.50894263]
[1737938642825,0.02750701,239.2,238.95,78.3]
[1737938642826,26.22614263,239.19,238.97,1.2922]
[1737938643026,4.1858,238.99,238.97,1.2922]
[1737938643228,26.22614263,239.15,238.95,78.3]
[1737938643527,0.76913608,239.14,238.95,78.3]
[1737938643828,0.0309264,239.07,239.03,0.02856153]
[1737938644618,4.1848,239.04,239.03,0.02856153]
[1737938646633,4.1848,239.04,238.9,1.3507]
[1737938646634,4.1867,238.93,238.9,1.3507]
[1737938646929,0.0309264,239.07,238.84,26.22614263]
[1737938646930,26.22614263,239.07,238.84,26.22614263]
[1737938647129,4.188,238.86,238.84,26.22614263]
[1737938648224,4.1883,238.85,238.83,0.03145617]
[1737938651132,4.1883,238.85,238.83,5.617e-05]
[1737938651831,1.4286,238.84,238.83,5.617e-05]
[1737938654032,2.19865194,238.84,238.83,5.617e-05]
[1737938654234,1.4286,238.84,238.83,5.617e-05]
[1737938654427,2.19866059,238.84,238.83,5.617e-05]
[1737938656233,2.19866691,238.84,238.83,5.617e-05]
[1737938656437,1.4286,238.84,238.83,5.617e-05]
[1737938657038,28.42478472,238.84,238.83,5.617e-05]
[1737938657232,4.1929,238.58,238.56,0.2853]
[1737938657432,26.22614263,238.73,238.53,26.22614263]
[1737938657637,4.0771,238.72,238.53,26.22614263]
[1737938657841,4.1932,238.57,238.53,26.22614263]
[1737938658334,4.0771,238.72,238.53,26.22614263]
[1737938658541,4.1933,238.56,238.53,26.22614263]
[1737938659237,0.03197611,238.57,238.53,26.22614263]
[1737938659439,4.0771,238.72,238.56,26.22614263]
[1737938659637,30.30324263,238.72,238.52,26.22614263]
[1737938659935,4.1936,238.54,238.52,26.22614263]
[1737938660337,30.30324263,238.72,238.48,30.69984263]
[1737938660536,30.30324263,238.72,238.51,0.03084331]
[1737938660537,4.1938,238.53,238.51,0.03084331]
[1737938660740,4.1938,238.53,238.48,30.69984263]
[1737938660939,4.1938,238.53,238.5,0.02796211]
[1737938661332,0.02682765,238.54,238.5,0.02796211]
[1737938661534,4.1931,238.57,238.52,26.22614263]
[1737938662036,4.0771,238.72,238.52,26.22614263]
[1737938662241,4.0771,238.72,238.56,26.22614263]
[1737938662843,4.1919,238.64,238.62,0.02768784]
[1737938663835,0.03010236,238.66,238.62,0.02768784]
[1737938664038,4.192,238.63,238.62,0.02768784]
[1737938665340,0.03010236,238.66,238.48,30.69984263]
[1737938665537,0.77039746,238.7,238.48,30.41314263]
[1737938666041,4.1937,238.54,238.48,30.41314263]
[1737938666340,26.22614263,238.63,238.4,26.22614263]
[1737938666538,4.194,238.52,238.49,0.02828823]
[1737938666740,0.02723931,238.53,238.49,0.02828823]
[1737938666934,2.7639,238.54,238.4,1.3702]
[1737938667237,2.7639,238.54,238.49,0.02946985]
[1737938667238,0.02989655,238.53,238.49,0.02946985]
[1737938667542,0.02989655,238.53,238.32,26.22614263]
[1737938668041,0.77096515,238.53,238.32,26.22614263]
[1737938668740,0.02768349,238.45,238.32,26.22614263]
[1737938669945,0.02768349,238.45,238.29,1.4854]
[1737938670338,0.77095224,238.5,238.29,1.4854]
[1737938670533,0.03025914,238.39,238.29,1.4854]
[1737938671638,0.03025914,238.39,238.29,1.383]
[1737938671841,0.03025914,238.39,238.23,26.22614263]
[1737938672136,26.22614263,238.43,238.23,26.22614263]
[1737938672337,2.17125224,238.42,238.23,26.22614263]
[1737938672540,4.1985,238.26,238.23,26.22614263]
[1737938672836,2.6198,238.41,238.23,26.22614263]
[1737938673039,4.1976,238.32,238.23,26.22614263]
[1737938673233,0.02697897,238.27,238.23,26.22614263]
[1737938673639,4.1976,238.31,238.23,26.22614263]
[1737938674046,4.1971,238.35,238.27,26.22614263]